[Event "January 9 Early 2024"]
[Site "https://www.chess.com"]
[Date "2024.01.11"]
[Round "1"]
[White "Rietze, Clemens, Dr."]
[Black "Bharath Subramaniyam H"]
[Result "1-0"]
[Board "38"]
[TimeControl "180+1"]
[WhiteFideId "24620351"]
[BlackFideId "46634827"]
[WhiteElo "2521"]
[BlackElo "2951"]
[WhiteTeam "GER"]
[BlackTeam "IND"]
[WhiteClock "0:00:58"]
[BlackClock "0:01:49"]

1. d4 {[%clk 0:03:00]}  Nf6 {[%clk 0:02:59]} 2. c4 {[%clk 0:02:57]}  e6 {[%clk 0:02:59]} 3. Nf3 {[%clk 0:02:56]}  d5 {[%clk 0:02:59]} 4. g3 {[%clk 0:02:54]}  dxc4 {[%clk 0:02:59]} 5. Bg2 {[%clk 0:02:53]}  a6 {[%clk 0:03:00]} 6. O-O {[%clk 0:02:52]}  Nc6 {[%clk 0:03:01]} 7. a4 {[%clk 0:02:53]}  Rb8 {[%clk 0:02:55]} 8. a5 {[%clk 0:02:46]}  b5 {[%clk 0:02:45]} 9. axb6 {[%clk 0:02:36]}  cxb6 {[%clk 0:02:45]} 10. Nc3 {[%clk 0:02:37]}  Be7 {[%clk 0:02:36]} 11. Bf4 {[%clk 0:02:07]}  Bd6 {[%clk 0:02:36]} 12. Bg5 {[%clk 0:01:53]}  O-O {[%clk 0:02:35]} 13. e4 {[%clk 0:01:53]}  Be7 {[%clk 0:02:26]} 14. Bf4 {[%clk 0:01:48]}  Ra8 {[%clk 0:02:12]} 15. d5 {[%clk 0:01:46]}  e5 {[%clk 0:02:11]} 16. Bxe5 {[%clk 0:01:24]}  Nxe5 {[%clk 0:02:10]} 17. Nxe5 {[%clk 0:01:25]}  Qc7 {[%clk 0:02:07]} 18. Nc6 {[%clk 0:01:19]}  Bd6 {[%clk 0:02:05]} 19. Nb5 {[%clk 0:01:11]}  Qd7 {[%clk 0:01:57]} 20. Nxd6 {[%clk 0:01:09]}  Qxd6 {[%clk 0:01:58]} 21. e5 {[%clk 0:01:10]}  Qc5 {[%clk 0:01:55]} 22. exf6 {[%clk 0:01:09]}  gxf6 {[%clk 0:01:55]} 23. d6 {[%clk 0:01:06]}  Bd7 {[%clk 0:01:50]} 24. Ne7+ {[%clk 0:01:05]}  Kg7 {[%clk 0:01:51]} 25. Bxa8 {[%clk 0:00:58]}  Rxa8 {[%clk 0:01:52]} 26. Qd5 {[%clk 0:00:58]}  Qxd5 {[%clk 0:01:49]} 27. Nxd5 {[%clk 0:00:58]}  b5 {[%clk 0:01:48]} 28. Nb6 {[%clk 0:00:57]}  Ra7 {[%clk 0:01:48]} 29. Nxd7 {[%clk 0:00:58]}  Rxd7 {[%clk 0:01:49]} 30. Rxa6 {[%clk 0:00:58]} 1-0

[Event "January 9 Early 2024"]
[Site "https://www.chess.com"]
[Date "2024.01.11"]
[Round "1"]
[White "Pultinevicius, Paulius"]
[Black "Travkina, Anastasia"]
[Result "1-0"]
[Board "42"]
[TimeControl "180+1"]
[WhiteFideId "12809390"]
[BlackFideId "24129151"]
[WhiteElo "2824"]
[BlackElo "2443"]
[WhiteTeam "LTU"]
[BlackTeam "RUS"]
[WhiteClock "0:01:11"]
[BlackClock "0:01:15"]

1. d4 {[%clk 0:03:00]}  Nf6 {[%clk 0:02:59]} 2. c4 {[%clk 0:03:00]}  c5 {[%clk 0:02:59]} 3. d5 {[%clk 0:02:59]}  b5 {[%clk 0:03:00]} 4. cxb5 {[%clk 0:02:59]}  a6 {[%clk 0:03:00]} 5. e3 {[%clk 0:02:58]}  e6 {[%clk 0:03:00]} 6. Nc3 {[%clk 0:02:56]}  exd5 {[%clk 0:03:00]} 7. Nxd5 {[%clk 0:02:57]}  Be7 {[%clk 0:03:00]} 8. Nf3 {[%clk 0:02:47]}  O-O {[%clk 0:02:59]} 9. b6 {[%clk 0:02:00]}  Nc6 {[%clk 0:02:52]} 10. Bc4 {[%clk 0:01:54]}  Nxd5 {[%clk 0:02:36]} 11. Bxd5 {[%clk 0:01:55]}  Bf6 {[%clk 0:02:36]} 12. O-O {[%clk 0:01:52]}  Qxb6 {[%clk 0:02:35]} 13. Rb1 {[%clk 0:01:45]}  Bb7 {[%clk 0:02:33]} 14. Bd2 {[%clk 0:01:43]}  Nb4 {[%clk 0:02:23]} 15. Bxb7 {[%clk 0:01:38]}  Qxb7 {[%clk 0:02:24]} 16. Bc3 {[%clk 0:01:33]}  Be7 {[%clk 0:02:16]} 17. Qb3 {[%clk 0:01:25]}  c4 {[%clk 0:02:09]} 18. Qxc4 {[%clk 0:01:21]}  Rac8 {[%clk 0:02:01]} 19. Qg4 {[%clk 0:01:20]}  f6 {[%clk 0:01:44]} 20. Rbd1 {[%clk 0:01:15]}  Rfd8 {[%clk 0:01:36]} 21. Nd4 {[%clk 0:01:12]}  Bf8 {[%clk 0:01:15]} 22. Nf5 {[%clk 0:01:10]}  Nd5 {[%clk 0:01:15]} 23. Nh6+ {[%clk 0:01:09]}  Kh8 {[%clk 0:01:15]} 24. Nf7+ {[%clk 0:01:09]}  Kg8 {[%clk 0:01:15]} 25. Nxd8 {[%clk 0:01:10]}  Rxd8 {[%clk 0:01:15]} 26. Qf3 {[%clk 0:01:11]} 1-0

[Event "January 9 Early 2024"]
[Site "https://www.chess.com"]
[Date "2024.01.11"]
[Round "1"]
[White "Eggleston, Thomas A"]
[Black "Trost, Edvin"]
[Result "0-1"]
[Board "43"]
[TimeControl "180+1"]
[WhiteFideId "412139"]
[BlackFideId "1729519"]
[WhiteElo "2257"]
[BlackElo "2613"]
[WhiteTeam "ENG"]
[BlackTeam "SWE"]
[WhiteClock "0:00:37"]
[BlackClock "0:02:05"]

1. e4 {[%clk 0:03:00]}  g6 {[%clk 0:02:56]} 2. d4 {[%clk 0:03:00]}  Bg7 {[%clk 0:02:56]} 3. Nc3 {[%clk 0:03:00]}  a6 {[%clk 0:02:56]} 4. a4 {[%clk 0:02:55]}  d6 {[%clk 0:02:54]} 5. Be3 {[%clk 0:02:50]}  Nf6 {[%clk 0:02:54]} 6. h3 {[%clk 0:02:50]}  Nc6 {[%clk 0:02:52]} 7. Nf3 {[%clk 0:02:49]}  O-O {[%clk 0:02:51]} 8. Be2 {[%clk 0:02:45]}  Nd7 {[%clk 0:02:51]} 9. d5 {[%clk 0:02:43]}  Nce5 {[%clk 0:02:51]} 10. Nxe5 {[%clk 0:02:42]}  Nxe5 {[%clk 0:02:50]} 11. Qd2 {[%clk 0:02:40]}  e6 {[%clk 0:02:47]} 12. Bh6 {[%clk 0:02:30]}  exd5 {[%clk 0:02:43]} 13. Bxg7 {[%clk 0:02:27]}  Kxg7 {[%clk 0:02:44]} 14. exd5 {[%clk 0:02:17]}  Re8 {[%clk 0:02:44]} 15. O-O {[%clk 0:02:13]}  Qh4 {[%clk 0:02:42]} 16. f4 {[%clk 0:02:08]}  Nd7 {[%clk 0:02:40]} 17. Bg4 {[%clk 0:02:01]}  Nf6 {[%clk 0:02:37]} 18. Bxc8 {[%clk 0:01:55]}  Raxc8 {[%clk 0:02:38]} 19. Qf2 {[%clk 0:01:51]}  Qh5 {[%clk 0:02:32]} 20. Rae1 {[%clk 0:01:50]}  Nxd5 {[%clk 0:02:10]} 21. Qd4+ {[%clk 0:01:41]}  Nf6 {[%clk 0:02:11]} 22. Ne4 {[%clk 0:01:07]}  Qf5 {[%clk 0:02:10]} 23. g4 {[%clk 0:01:05]}  Rxe4 {[%clk 0:02:07]} 24. Rxe4 {[%clk 0:00:40]}  Qxe4 {[%clk 0:02:08]} 25. Qc3 {[%clk 0:00:41]}  d5 {[%clk 0:02:00]} 26. g5 {[%clk 0:00:41]}  d4 {[%clk 0:02:00]} 27. gxf6+ {[%clk 0:00:41]}  Kxf6 {[%clk 0:02:01]} 28. Qg3 {[%clk 0:00:40]}  Qe3+ {[%clk 0:02:01]} 29. Qxe3 {[%clk 0:00:40]}  dxe3 {[%clk 0:02:01]} 30. Re1 {[%clk 0:00:40]}  Re8 {[%clk 0:02:02]} 31. Kg2 {[%clk 0:00:40]}  Kf5 {[%clk 0:02:03]} 32. Kf3 {[%clk 0:00:40]}  Re4 {[%clk 0:02:04]} 33. b3 {[%clk 0:00:36]}  Rxf4+ {[%clk 0:02:04]} 34. Kxe3 {[%clk 0:00:37]}  Re4+ {[%clk 0:02:05]} 0-1

[Event "January 9 Early 2024"]
[Site "https://www.chess.com"]
[Date "2024.01.11"]
[Round "1"]
[White "Sasvatha A"]
[Black "Olenik Campa, Rudi"]
[Result "0-1"]
[Board "46"]
[TimeControl "180+1"]
[WhiteFideId "45010862"]
[BlackFideId "14633264"]
[WhiteElo "2175"]
[BlackElo "2573"]
[WhiteTeam "IND"]
[BlackTeam "SLO"]
[WhiteClock "0:01:08"]
[BlackClock "0:01:22"]

1. Nc3 {[%clk 0:03:00]}  e5 {[%clk 0:02:59]} 2. b3 {[%clk 0:02:59]}  Nf6 {[%clk 0:02:58]} 3. Bb2 {[%clk 0:02:59]}  d5 {[%clk 0:02:58]} 4. e3 {[%clk 0:02:57]}  Nc6 {[%clk 0:02:54]} 5. Nge2 {[%clk 0:02:54]}  Be7 {[%clk 0:02:52]} 6. d4 {[%clk 0:02:54]}  exd4 {[%clk 0:02:52]} 7. exd4 {[%clk 0:02:54]}  O-O {[%clk 0:02:51]} 8. Qd2 {[%clk 0:02:53]}  Ng4 {[%clk 0:02:40]} 9. f3 {[%clk 0:02:49]}  Bg5 {[%clk 0:02:39]} 10. Qd3 {[%clk 0:02:44]}  Nh6 {[%clk 0:02:37]} 11. a3 {[%clk 0:02:42]}  Bf5 {[%clk 0:02:36]} 12. Qd1 {[%clk 0:02:39]}  Re8 {[%clk 0:02:36]} 13. g3 {[%clk 0:02:31]}  Be3 {[%clk 0:02:33]} 14. Na4 {[%clk 0:02:21]}  Qf6 {[%clk 0:02:19]} 15. c3 {[%clk 0:02:12]}  Be4 {[%clk 0:02:08]} 16. Bg2 {[%clk 0:01:50]}  Bxf3 {[%clk 0:01:57]} 17. Bxf3 {[%clk 0:01:49]}  Qxf3 {[%clk 0:01:56]} 18. Rf1 {[%clk 0:01:48]}  Qg2 {[%clk 0:01:49]} 19. h4 {[%clk 0:01:47]}  Ng4 {[%clk 0:01:48]} 20. Nc5 {[%clk 0:01:34]}  Bf2+ {[%clk 0:01:47]} 21. Kd2 {[%clk 0:01:28]}  Ne3 {[%clk 0:01:47]} 22. Qc1 {[%clk 0:01:26]}  Nc4+ {[%clk 0:01:38]} 23. Kc2 {[%clk 0:01:14]}  Rxe2+ {[%clk 0:01:37]} 24. Kb1 {[%clk 0:01:14]}  Rxb2+ {[%clk 0:01:25]} 25. Qxb2 {[%clk 0:01:13]}  Nxb2 {[%clk 0:01:23]} 26. Kxb2 {[%clk 0:01:08]}  Bxd4+ {[%clk 0:01:22]} 0-1

[Event "January 9 Early 2024"]
[Site "https://www.chess.com"]
[Date "2024.01.11"]
[Round "1"]
[White "Haring, Filip"]
[Black "Jarocka, Liwia"]
[Result "1-0"]
[Board "48"]
[TimeControl "180+1"]
[WhiteFideId "14933080"]
[BlackFideId "21807558"]
[WhiteElo "2714"]
[BlackElo "2390"]
[WhiteTeam "SVK"]
[BlackTeam "POL"]
[WhiteClock "0:00:40"]
[BlackClock "0:01:19"]

1. d4 {[%clk 0:02:59]}  d5 {[%clk 0:02:45]} 2. Nf3 {[%clk 0:03:00]}  Nf6 {[%clk 0:02:43]} 3. c4 {[%clk 0:02:59]}  c6 {[%clk 0:02:43]} 4. Nc3 {[%clk 0:02:59]}  e6 {[%clk 0:02:43]} 5. e3 {[%clk 0:02:54]}  Nbd7 {[%clk 0:02:42]} 6. Bd3 {[%clk 0:02:54]}  dxc4 {[%clk 0:02:42]} 7. Bxc4 {[%clk 0:02:54]}  b5 {[%clk 0:02:42]} 8. Bd3 {[%clk 0:02:54]}  Bb7 {[%clk 0:02:43]} 9. O-O {[%clk 0:02:55]}  Bd6 {[%clk 0:02:42]} 10. Qe2 {[%clk 0:02:45]}  O-O {[%clk 0:02:42]} 11. Rd1 {[%clk 0:02:34]}  Qe7 {[%clk 0:02:32]} 12. e4 {[%clk 0:02:25]}  e5 {[%clk 0:02:32]} 13. Bg5 {[%clk 0:02:26]}  exd4 {[%clk 0:02:26]} 14. Nxd4 {[%clk 0:02:25]}  g6 {[%clk 0:02:10]} 15. Nf3 {[%clk 0:01:29]}  Rfe8 {[%clk 0:01:52]} 16. Bc2 {[%clk 0:01:28]}  Ne5 {[%clk 0:01:39]} 17. Bb3 {[%clk 0:01:10]}  Nxf3+ {[%clk 0:01:19]} 18. Qxf3 {[%clk 0:01:10]}  Be5 {[%clk 0:01:20]} 19. Rd2 {[%clk 0:00:47]}  b4 {[%clk 0:01:19]} 20. Ne2 {[%clk 0:00:40]}  c5 {[%clk 0:01:19]} 1-0

[Event "January 9 Early 2024"]
[Site "https://www.chess.com"]
[Date "2024.01.11"]
[Round "1"]
[White "Thake, Conrad"]
[Black "Przybylski, Wojciech"]
[Result "0-1"]
[Board "49"]
[TimeControl "180+1"]
[WhiteFideId "5602947"]
[BlackFideId "1117599"]
[WhiteElo "1839"]
[BlackElo "2539"]
[WhiteTeam "MLT"]
[BlackTeam "POL"]
[WhiteClock "0:01:19"]
[BlackClock "0:00:58"]

1. e4 {[%clk 0:03:00]}  c5 {[%clk 0:02:58]} 2. Nf3 {[%clk 0:03:00]}  d6 {[%clk 0:02:58]} 3. d4 {[%clk 0:02:56]}  cxd4 {[%clk 0:02:58]} 4. Nxd4 {[%clk 0:02:56]}  Nf6 {[%clk 0:02:59]} 5. Nc3 {[%clk 0:02:55]}  a6 {[%clk 0:02:59]} 6. Be2 {[%clk 0:02:55]}  e5 {[%clk 0:02:58]} 7. Nf3 {[%clk 0:02:52]}  Be7 {[%clk 0:02:58]} 8. O-O {[%clk 0:02:52]}  O-O {[%clk 0:02:58]} 9. Be3 {[%clk 0:02:52]}  Be6 {[%clk 0:02:56]} 10. h3 {[%clk 0:02:51]}  h6 {[%clk 0:02:54]} 11. Qd2 {[%clk 0:02:51]}  Nbd7 {[%clk 0:02:53]} 12. Rad1 {[%clk 0:02:48]}  Rc8 {[%clk 0:02:52]} 13. Kh1 {[%clk 0:02:31]}  Nc5 {[%clk 0:02:43]} 14. Bd3 {[%clk 0:02:26]}  b5 {[%clk 0:02:41]} 15. a3 {[%clk 0:02:25]}  Nxd3 {[%clk 0:02:38]} 16. cxd3 {[%clk 0:02:22]}  d5 {[%clk 0:02:34]} 17. exd5 {[%clk 0:02:19]}  Nxd5 {[%clk 0:02:34]} 18. Nxe5 {[%clk 0:02:16]}  Nxc3 {[%clk 0:02:25]} 19. bxc3 {[%clk 0:02:16]}  Qc7 {[%clk 0:02:23]} 20. Bd4 {[%clk 0:01:58]}  Bxa3 {[%clk 0:02:16]} 21. f4 {[%clk 0:01:58]}  Bd5 {[%clk 0:02:00]} 22. f5 {[%clk 0:01:54]}  f6 {[%clk 0:01:57]} 23. Ng6 {[%clk 0:01:45]}  Rfe8 {[%clk 0:01:56]} 24. Rfe1 {[%clk 0:01:44]}  Qg3 {[%clk 0:01:48]} 25. Nf4 {[%clk 0:01:33]}  Bd6 {[%clk 0:01:42]} 26. Rxe8+ {[%clk 0:01:24]}  Rxe8 {[%clk 0:01:41]} 27. Rf1 {[%clk 0:01:24]}  Bxf4 {[%clk 0:01:00]} 28. Qxf4 {[%clk 0:01:19]}  Qxg2# {[%clk 0:00:58]} 0-1

[Event "January 9 Early 2024"]
[Site "https://www.chess.com"]
[Date "2024.01.11"]
[Round "1"]
[White "Shuvalov, Evgenij"]
[Black "Kevlishvili, Robby"]
[Result "0-1"]
[Board "50"]
[TimeControl "180+1"]
[WhiteFideId "4187237"]
[BlackFideId "1040634"]
[WhiteElo "2511"]
[BlackElo "2975"]
[WhiteTeam "FID"]
[BlackTeam "NED"]
[WhiteClock "0:00:32"]
[BlackClock "0:01:43"]

1. d4 {[%clk 0:03:00]}  Nf6 {[%clk 0:02:59]} 2. c4 {[%clk 0:02:48]}  g6 {[%clk 0:02:59]} 3. Nc3 {[%clk 0:02:46]}  Bg7 {[%clk 0:02:59]} 4. e4 {[%clk 0:02:46]}  d6 {[%clk 0:03:00]} 5. Nf3 {[%clk 0:02:46]}  O-O {[%clk 0:03:00]} 6. Be2 {[%clk 0:02:46]}  Na6 {[%clk 0:03:01]} 7. O-O {[%clk 0:02:46]}  e5 {[%clk 0:02:59]} 8. Be3 {[%clk 0:02:43]}  Qe7 {[%clk 0:02:55]} 9. d5 {[%clk 0:02:38]}  Nc5 {[%clk 0:02:55]} 10. Nd2 {[%clk 0:02:35]}  a5 {[%clk 0:02:54]} 11. a3 {[%clk 0:02:27]}  h5 {[%clk 0:02:32]} 12. b4 {[%clk 0:02:22]}  Na6 {[%clk 0:02:31]} 13. f3 {[%clk 0:02:08]}  h4 {[%clk 0:02:31]} 14. Qe1 {[%clk 0:01:46]}  Nh5 {[%clk 0:02:30]} 15. Bf2 {[%clk 0:01:30]}  Bf6 {[%clk 0:02:25]} 16. g3 {[%clk 0:01:24]}  Bh3 {[%clk 0:02:24]} 17. Rb1 {[%clk 0:01:18]}  Bg5 {[%clk 0:02:19]} 18. Kh1 {[%clk 0:01:00]}  Bxf1 {[%clk 0:02:17]} 19. Bxf1 {[%clk 0:01:00]}  Qf6 {[%clk 0:02:11]} 20. Be2 {[%clk 0:00:48]}  Kg7 {[%clk 0:02:07]} 21. Kg2 {[%clk 0:00:48]}  hxg3 {[%clk 0:02:05]} 22. hxg3 {[%clk 0:00:49]}  Rh8 {[%clk 0:02:05]} 23. Nf1 {[%clk 0:00:44]}  Qe7 {[%clk 0:02:02]} 24. Be3 {[%clk 0:00:42]}  Bxe3 {[%clk 0:02:02]} 25. Nxe3 {[%clk 0:00:43]}  Qg5 {[%clk 0:02:02]} 26. Kf2 {[%clk 0:00:36]}  Qxg3+ {[%clk 0:02:00]} 27. Kf1 {[%clk 0:00:36]}  Qh3+ {[%clk 0:02:00]} 28. Kf2 {[%clk 0:00:36]}  Nf4 {[%clk 0:01:58]} 29. Qg1 {[%clk 0:00:34]}  Qh2+ {[%clk 0:01:45]} 30. Ng2 {[%clk 0:00:32]}  Nh3+ {[%clk 0:01:43]} 0-1

[Event "January 9 Early 2024"]
[Site "https://www.chess.com"]
[Date "2024.01.11"]
[Round "1"]
[White "Zeneli, Klendi"]
[Black "Cristobal, Manuel"]
[Result "0-1"]
[Board "52"]
[TimeControl "180+1"]
[WhiteFideId "4706609"]
[BlackFideId "112879"]
[WhiteElo "2369"]
[BlackElo "2703"]
[WhiteTeam "ALB"]
[BlackTeam "ARG"]
[WhiteClock "0:00:58"]
[BlackClock "0:01:56"]

1. e4 {[%clk 0:02:59]}  Nc6 {[%clk 0:03:00]} 2. Nf3 {[%clk 0:02:58]}  d5 {[%clk 0:03:00]} 3. exd5 {[%clk 0:02:58]}  Qxd5 {[%clk 0:03:00]} 4. Nc3 {[%clk 0:02:59]}  Qh5 {[%clk 0:02:59]} 5. d4 {[%clk 0:02:54]}  Bg4 {[%clk 0:02:59]} 6. Bb5 {[%clk 0:02:14]}  O-O-O {[%clk 0:02:56]} 7. Bxc6 {[%clk 0:02:11]}  bxc6 {[%clk 0:02:56]} 8. Be3 {[%clk 0:02:11]}  e6 {[%clk 0:02:55]} 9. Qe2 {[%clk 0:02:10]}  Kb7 {[%clk 0:02:55]} 10. O-O {[%clk 0:02:07]}  Nf6 {[%clk 0:02:51]} 11. a4 {[%clk 0:02:03]}  Bd6 {[%clk 0:02:50]} 12. h3 {[%clk 0:02:02]}  Bxf3 {[%clk 0:02:38]} 13. Qxf3 {[%clk 0:02:02]}  Qxf3 {[%clk 0:02:37]} 14. gxf3 {[%clk 0:02:03]}  Nd5 {[%clk 0:02:37]} 15. Ne4 {[%clk 0:01:49]}  f5 {[%clk 0:02:28]} 16. Ng5 {[%clk 0:01:43]}  Rde8 {[%clk 0:02:28]} 17. Nf7 {[%clk 0:01:41]}  Rhf8 {[%clk 0:02:27]} 18. Ne5 {[%clk 0:01:39]}  f4 {[%clk 0:02:22]} 19. Bd2 {[%clk 0:01:38]}  Bxe5 {[%clk 0:02:22]} 20. dxe5 {[%clk 0:01:38]}  Rf5 {[%clk 0:02:23]} 21. c4 {[%clk 0:01:38]}  Nb6 {[%clk 0:02:21]} 22. b3 {[%clk 0:01:36]}  Rxe5 {[%clk 0:02:20]} 23. Bc3 {[%clk 0:01:35]}  Rg5+ {[%clk 0:02:19]} 24. Kh2 {[%clk 0:01:34]}  Nd7 {[%clk 0:02:19]} 25. Rg1 {[%clk 0:01:33]}  Rxg1 {[%clk 0:02:17]} 26. Rxg1 {[%clk 0:01:34]}  g6 {[%clk 0:02:18]} 27. h4 {[%clk 0:01:32]}  e5 {[%clk 0:02:13]} 28. h5 {[%clk 0:01:32]}  Re6 {[%clk 0:02:07]} 29. b4 {[%clk 0:01:29]}  Nb6 {[%clk 0:02:05]} 30. c5 {[%clk 0:01:26]}  Nd5 {[%clk 0:02:00]} 31. Bd2 {[%clk 0:01:25]}  e4 {[%clk 0:02:00]} 32. hxg6 {[%clk 0:01:20]}  hxg6 {[%clk 0:02:00]} 33. fxe4 {[%clk 0:01:20]}  Rxe4 {[%clk 0:02:00]} 34. b5 {[%clk 0:01:19]}  Re2 {[%clk 0:01:57]} 35. bxc6+ {[%clk 0:01:16]}  Kxc6 {[%clk 0:01:57]} 36. Rxg6+ {[%clk 0:01:16]}  Kxc5 {[%clk 0:01:57]} 37. Bc1 {[%clk 0:01:01]}  Rxf2+ {[%clk 0:01:55]} 38. Kh3 {[%clk 0:01:02]}  Rc2 {[%clk 0:01:55]} 39. Ba3+ {[%clk 0:01:00]}  Kd4 {[%clk 0:01:55]} 40. Kg4 {[%clk 0:00:59]}  Rg2+ {[%clk 0:01:55]} 41. Kf5 {[%clk 0:00:58]}  Rxg6 {[%clk 0:01:55]} 42. Kxg6 {[%clk 0:00:58]}  f3 {[%clk 0:01:56]} 0-1

[Event "January 9 Early 2024"]
[Site "https://www.chess.com"]
[Date "2024.01.11"]
[Round "1"]
[White "Martinez Alcantara, Jose Eduardo"]
[Black "Yelisieiev, Yevhenii"]
[Result "1-0"]
[Board "54"]
[TimeControl "180+1"]
[WhiteFideId "3805662"]
[BlackFideId "14139642"]
[WhiteElo "3036"]
[BlackElo "2522"]
[WhiteTeam "PER"]
[BlackTeam "GER"]
[WhiteClock "0:01:53"]
[BlackClock "0:00:23"]

1. e4 {[%clk 0:03:00]}  d6 {[%clk 0:03:00]} 2. d4 {[%clk 0:03:00]}  Nf6 {[%clk 0:03:01]} 3. Bd3 {[%clk 0:03:00]}  e5 {[%clk 0:03:01]} 4. c3 {[%clk 0:03:00]}  g6 {[%clk 0:03:02]} 5. Nf3 {[%clk 0:03:01]}  Nbd7 {[%clk 0:03:02]} 6. O-O {[%clk 0:03:01]}  Bg7 {[%clk 0:03:02]} 7. h3 {[%clk 0:03:02]}  O-O {[%clk 0:03:00]} 8. Re1 {[%clk 0:03:02]}  Re8 {[%clk 0:02:50]} 9. Bg5 {[%clk 0:03:00]}  h6 {[%clk 0:02:49]} 10. Bh4 {[%clk 0:02:58]}  g5 {[%clk 0:02:49]} 11. Bg3 {[%clk 0:02:58]}  Nh5 {[%clk 0:02:41]} 12. Bh2 {[%clk 0:02:58]}  Nf4 {[%clk 0:02:40]} 13. Bf1 {[%clk 0:02:57]}  exd4 {[%clk 0:02:24]} 14. cxd4 {[%clk 0:02:57]}  c5 {[%clk 0:02:21]} 15. Nc3 {[%clk 0:02:52]}  cxd4 {[%clk 0:02:19]} 16. Nxd4 {[%clk 0:02:53]}  Nc5 {[%clk 0:02:14]} 17. Qd2 {[%clk 0:02:45]}  Nfd3 {[%clk 0:02:06]} 18. Bxd3 {[%clk 0:02:44]}  Bxd4 {[%clk 0:02:06]} 19. Bb5 {[%clk 0:02:40]}  Bxc3 {[%clk 0:02:05]} 20. bxc3 {[%clk 0:02:32]}  Nxe4 {[%clk 0:01:57]} 21. Qd4 {[%clk 0:02:25]}  Nf6 {[%clk 0:01:29]} 22. Bxe8 {[%clk 0:02:24]}  Nxe8 {[%clk 0:01:29]} 23. Rab1 {[%clk 0:02:13]}  b6 {[%clk 0:01:16]} 24. Qe4 {[%clk 0:02:13]}  Be6 {[%clk 0:01:15]} 25. a3 {[%clk 0:02:09]}  Rc8 {[%clk 0:01:13]} 26. Qe3 {[%clk 0:02:09]}  Qc7 {[%clk 0:01:06]} 27. Rbc1 {[%clk 0:02:09]}  Qc4 {[%clk 0:01:02]} 28. Bg3 {[%clk 0:02:08]}  d5 {[%clk 0:00:56]} 29. Be5 {[%clk 0:02:07]}  Ng7 {[%clk 0:00:52]} 30. Qf3 {[%clk 0:02:00]}  Nf5 {[%clk 0:00:40]} 31. g4 {[%clk 0:02:00]}  Ne7 {[%clk 0:00:24]} 32. Qf6 {[%clk 0:01:57]}  Kf8 {[%clk 0:00:23]} 33. Bd6 {[%clk 0:01:53]} 1-0

[Event "January 9 Early 2024"]
[Site "https://www.chess.com"]
[Date "2024.01.11"]
[Round "1"]
[White "Filipovic, Slobodan J"]
[Black "Tatarinov, Dmitry"]
[Result "0-1"]
[Board "57"]
[TimeControl "180+1"]
[WhiteFideId "939633"]
[BlackFideId "24160067"]
[WhiteElo "2409"]
[BlackElo "2748"]
[WhiteTeam "SRB"]
[BlackTeam "RUS"]
[WhiteClock "0:01:07"]
[BlackClock "0:01:48"]

1. c4 {[%clk 0:03:00]}  e5 {[%clk 0:02:55]} 2. Nc3 {[%clk 0:02:59]}  Nf6 {[%clk 0:02:54]} 3. Nf3 {[%clk 0:02:58]}  e4 {[%clk 0:02:49]} 4. Ng5 {[%clk 0:02:57]}  b5 {[%clk 0:02:45]} 5. d3 {[%clk 0:02:54]}  exd3 {[%clk 0:02:40]} 6. exd3 {[%clk 0:02:51]}  b4 {[%clk 0:02:39]} 7. Nce4 {[%clk 0:02:43]}  Bb7 {[%clk 0:02:35]} 8. Qe2 {[%clk 0:02:37]}  Nxe4 {[%clk 0:02:31]} 9. Nxe4 {[%clk 0:02:37]}  Be7 {[%clk 0:02:31]} 10. Ng3 {[%clk 0:02:23]}  O-O {[%clk 0:02:29]} 11. Be3 {[%clk 0:02:21]}  Re8 {[%clk 0:02:21]} 12. O-O-O {[%clk 0:02:15]}  d5 {[%clk 0:02:19]} 13. Qg4 {[%clk 0:02:14]}  Bf8 {[%clk 0:02:15]} 14. Nf5 {[%clk 0:02:08]}  Qf6 {[%clk 0:02:06]} 15. Bd4 {[%clk 0:02:07]}  Qg6 {[%clk 0:02:06]} 16. Qxg6 {[%clk 0:01:59]}  hxg6 {[%clk 0:02:07]} 17. Ne3 {[%clk 0:01:59]}  c5 {[%clk 0:02:06]} 18. Bxc5 {[%clk 0:01:44]}  Bxc5 {[%clk 0:02:05]} 19. d4 {[%clk 0:01:45]}  Bd6 {[%clk 0:02:01]} 20. c5 {[%clk 0:01:45]}  Bf4 {[%clk 0:02:01]} 21. Bb5 {[%clk 0:01:42]}  Nc6 {[%clk 0:01:59]} 22. Rhe1 {[%clk 0:01:40]}  Re4 {[%clk 0:01:55]} 23. Bxc6 {[%clk 0:01:34]}  Bxc6 {[%clk 0:01:55]} 24. g3 {[%clk 0:01:35]}  Bxe3+ {[%clk 0:01:53]} 25. Rxe3 {[%clk 0:01:32]}  Rxe3 {[%clk 0:01:54]} 26. fxe3 {[%clk 0:01:33]}  f5 {[%clk 0:01:55]} 27. Kd2 {[%clk 0:01:32]}  Kf7 {[%clk 0:01:55]} 28. Rf1 {[%clk 0:01:30]}  Ke6 {[%clk 0:01:54]} 29. h4 {[%clk 0:01:25]}  a5 {[%clk 0:01:55]} 30. Rg1 {[%clk 0:01:23]}  Rh8 {[%clk 0:01:53]} 31. Ke2 {[%clk 0:01:21]}  Kf6 {[%clk 0:01:52]} 32. Kf2 {[%clk 0:01:21]}  g5 {[%clk 0:01:52]} 33. hxg5+ {[%clk 0:01:17]}  Kxg5 {[%clk 0:01:53]} 34. Rb1 {[%clk 0:01:10]}  Rh2+ {[%clk 0:01:52]} 35. Kg1 {[%clk 0:01:08]}  Re2 {[%clk 0:01:51]} 36. Rf1 {[%clk 0:01:04]}  Rxb2 {[%clk 0:01:50]} 37. Rf2 {[%clk 0:01:04]}  Rxf2 {[%clk 0:01:48]} 38. Kxf2 {[%clk 0:01:05]}  a4 {[%clk 0:01:49]} 39. Ke2 {[%clk 0:01:04]}  b3 {[%clk 0:01:49]} 40. axb3 {[%clk 0:01:05]}  a3 {[%clk 0:01:47]} 41. b4 {[%clk 0:01:06]}  a2 {[%clk 0:01:47]} 42. b5 {[%clk 0:01:07]}  Bxb5+ {[%clk 0:01:47]} 43. Kd2 {[%clk 0:01:06]}  a1=Q {[%clk 0:01:47]} 44. c6 {[%clk 0:01:07]}  Qb2+ {[%clk 0:01:48]} 45. Kd1 {[%clk 0:01:07]}  Bd3 {[%clk 0:01:48]} 0-1

[Event "January 9 Early 2024"]
[Site "https://www.chess.com"]
[Date "2024.01.11"]
[Round "1"]
[White "Girsh, Daniel"]
[Black "Petrukhina, Olga"]
[Result "1-0"]
[Board "58"]
[TimeControl "180+1"]
[WhiteFideId "30949190"]
[BlackFideId "13703935"]
[WhiteElo "2642"]
[BlackElo "2298"]
[WhiteTeam "USA"]
[BlackTeam "KAZ"]
[WhiteClock "0:01:11"]
[BlackClock "0:00:53"]

1. Nf3 {[%clk 0:03:00]}  e6 {[%clk 0:02:59]} 2. d4 {[%clk 0:02:59]}  d5 {[%clk 0:02:59]} 3. g3 {[%clk 0:02:59]}  Nf6 {[%clk 0:02:59]} 4. Bg2 {[%clk 0:02:59]}  Be7 {[%clk 0:02:59]} 5. O-O {[%clk 0:03:00]}  b5 {[%clk 0:03:00]} 6. b3 {[%clk 0:02:56]}  Bb7 {[%clk 0:02:57]} 7. Bb2 {[%clk 0:02:57]}  O-O {[%clk 0:02:55]} 8. Nbd2 {[%clk 0:02:58]}  c5 {[%clk 0:02:54]} 9. dxc5 {[%clk 0:02:58]}  Bxc5 {[%clk 0:02:55]} 10. c4 {[%clk 0:02:57]}  bxc4 {[%clk 0:02:55]} 11. bxc4 {[%clk 0:02:57]}  Nbd7 {[%clk 0:02:54]} 12. Rb1 {[%clk 0:02:55]}  Rb8 {[%clk 0:02:49]} 13. Qa4 {[%clk 0:02:53]}  Qe7 {[%clk 0:02:40]} 14. cxd5 {[%clk 0:02:47]}  Bxd5 {[%clk 0:02:37]} 15. e4 {[%clk 0:02:26]}  Ba8 {[%clk 0:02:16]} 16. e5 {[%clk 0:02:25]}  Nd5 {[%clk 0:02:05]} 17. Ne4 {[%clk 0:02:23]}  Bb6 {[%clk 0:01:56]} 18. Nd6 {[%clk 0:02:07]}  Nc5 {[%clk 0:01:53]} 19. Qc4 {[%clk 0:01:51]}  Qd7 {[%clk 0:01:23]} 20. Ba3 {[%clk 0:01:48]}  Qa4 {[%clk 0:01:15]} 21. Qxa4 {[%clk 0:01:37]}  Nxa4 {[%clk 0:01:16]} 22. Rbc1 {[%clk 0:01:13]}  Nac3 {[%clk 0:01:10]} 23. Rc2 {[%clk 0:01:12]}  Rfd8 {[%clk 0:01:04]} 24. Rfc1 {[%clk 0:01:12]}  Ne4 {[%clk 0:00:53]} 25. Nxe4 {[%clk 0:01:11]} 1-0